bitfinex/quotes_ETHUSD_20220120
["timestamp","ask_amount","ask_price","bid_price","bid_amount"]
[1642654488486,0.27880313,3127.1,3126.1,0.01098487]
[1642654491120,0.26609997,3127.1,3126.1,0.01098487]
[1642654491717,0.13819997,3127.1,3126.1,0.01098487]
[1642654492324,0.13819997,3127.1,3126.1,2.42184754]
[1642654492521,0.13819997,3127.1,3126.1,0.31098487]
[1642654492721,0.13819997,3127.1,3126.2,0.01041645]
[1642654492921,0.13654263,3127.1,3126.2,0.01041645]
[1642654493569,0.13654263,3127.1,3126.1,0.01098487]
[1642654493768,0.13654263,3127.1,3126.3,0.00984802]
[1642654493968,0.13654263,3127.1,3126.3,1.48191683]
[1642654494168,0.13654263,3127.1,3126.3,1.78191683]
[1642654494369,0.13654263,3127.1,3126.4,0.0092796]
[1642654498419,0.13654263,3127.1,3126.1,0.01098487]
[1642654499020,0.13654263,3127.1,3126.0,0.01155329]
[1642654499420,0.13654263,3127.1,3126.0,1.36291955]
[1642654499623,0.13654263,3127.1,3126.0,1.66291955]
[1642654499821,0.13654263,3127.1,3126.1,0.01098487]
[1642654501064,0.26444263,3127.1,3126.1,0.01098487]
[1642654506320,0.13654263,3127.1,3126.1,0.01098487]
[1642654508887,0.13654263,3127.1,3126.1,2.48586905]
[1642654509089,7.0752,3127.3,3126.2,0.3]
[1642654509289,7.0752,3127.3,3126.3,2.9198806]
[1642654509487,7.0752,3127.3,3126.3,3.22972862]
[1642654509692,3.8976,3127.3,3126.4,1.0092796]
[1642654509889,3.8976,3127.3,3126.5,2.43544547]
[1642654510092,3.8976,3127.3,3126.5,2.74415665]
[1642654510291,3.8976,3127.3,3126.6,0.00814275]
[1642654510491,3.8976,3127.3,3126.6,1.00814275]
[1642654510691,0.1279,3127.3,3126.8,1.11945029]
[1642654511090,0.1279,3127.3,3126.9,0.00643748]
[1642654511691,0.1279,3127.3,3126.9,0.30643748]
[1642654511891,3.7996,3127.7,3126.9,0.00643748]
[1642654512119,2.72081766,3127.6,3127.0,0.00586906]
[1642654512323,2.72081766,3127.6,3126.8,0.00700591]
[1642654512324,2.84871766,3127.6,3126.8,0.00700591]
[1642654512524,2.72081766,3127.5,3126.5,0.30871118]
[1642654512726,2.72081766,3127.5,3126.6,0.00814275]
[1642654513125,2.72081766,3127.5,3126.5,0.30871118]
[1642654513423,2.71998847,3127.5,3126.6,0.00814275]
[1642654517870,4.0743426,3127.7,3126.6,0.00814275]
[1642654518975,4.3743426,3127.7,3126.6,0.00814275]
[1642654520428,4.0743426,3127.7,3126.6,0.00814275]
[1642654520625,4.0743426,3127.7,3126.6,1.00814275]
[1642654520825,4.0743426,3127.7,3126.6,0.00814275]
[1642654521027,4.0743426,3127.7,3126.7,0.00757433]
[1642654521228,4.0743426,3127.7,3126.6,1.00814275]
[1642654521427,4.0743426,3127.7,3126.7,0.00757433]
[1642654522430,4.2022426,3127.7,3126.7,0.00757433]
[1642654522629,4.2022426,3127.7,3126.6,0.00814275]
[1642654523563,1.0,3127.6,3126.6,0.00814275]
[1642654523763,2.4965036,3127.5,3126.6,0.00814275]
[1642654523964,2.4965036,3127.5,3126.4,1.4766]
[1642654523965,2.4965036,3127.5,3126.5,0.00871118]
[1642654524165,2.7965036,3127.5,3126.5,0.00871118]
[1642654524565,1.0,3127.4,3126.5,0.00871118]
[1642654524765,0.1279,3127.3,3126.5,0.00871118]
[1642654526267,0.1279,3127.5,3126.5,0.00871118]
[1642654529220,0.1279,3127.5,3126.5,0.00960891]
[1642654529620,0.1279,3127.5,3126.6,0.00814275]
[1642654529822,0.1279,3127.5,3126.6,0.00904048]
[1642654530221,0.1279,3127.5,3126.7,0.00757433]
[1642654530421,0.1279,3127.5,3126.7,0.00847206]
[1642654530865,0.1279,3127.5,3126.8,0.00700591]
[1642654531064,0.1279,3127.5,3126.8,0.00790364]
[1642654531564,0.1279,3127.5,3126.9,0.00643748]
[1642654531765,0.1279,3127.5,3126.9,0.00733521]
[1642654532063,0.1279,3127.5,3127.0,0.00586906]
[1642654532265,0.1279,3127.5,3127.0,0.00676679]
[1642654532666,0.1279,3127.5,3127.1,0.00530064]
[1642654532868,0.1279,3127.5,3127.1,0.00619837]
[1642654533269,0.1279,3127.5,3127.2,0.00473221]
[1642654533466,0.1279,3127.5,3127.2,0.00562994]
[1642654533467,2.72097601,3127.4,3127.2,0.00562994]
[1642654533867,2.72097601,3127.4,3127.3,0.00416379]
[1642654534067,2.72097601,3127.4,3127.3,0.00506152]
[1642654535923,2.88002601,3127.4,3127.3,0.00506152]
[1642654536120,2.72097601,3127.4,3127.3,0.00506152]
[1642654536926,2.72013739,3127.4,3127.3,0.00506152]
[1642654537320,4.0743426,3127.7,3127.3,0.00506152]
[1642654537721,4.3743426,3127.7,3127.4,0.00359537]
[1642654538022,4.3743426,3127.7,3127.4,0.0044931]
[1642654538023,0.1278,3127.6,3127.4,0.0044931]
[1642654538494,0.1278,3127.6,3127.5,0.00302694]
[1642654538691,0.1278,3127.6,3127.5,0.00392467]
[1642654539092,4.0278,3127.6,3127.5,0.00392467]
[1642654544920,0.1278,3127.6,3127.5,0.00392467]
[1642654545961,2.4778,3127.6,3127.5,0.00392467]
[1642654548269,4.2021426,3127.7,3127.5,0.00392467]
[1642654548469,4.0743426,3127.7,3127.5,0.00392467]
[1642654548671,4.0743426,3127.7,3127.6,0.00245852]
[1642654548872,4.0743426,3127.7,3127.6,0.00335625]
[1642654551316,0.2747426,3127.7,3127.6,0.00335625]
[1642654556981,2.72053507,3127.7,3127.6,0.00335625]
[1642654557220,7.235,3128.1,3127.6,0.00335625]
[1642654557419,2.7202822,3128.0,3127.6,0.00335625]
[1642654557616,2.7202822,3128.0,3127.7,0.0018901]
[1642654557817,2.7202822,3128.0,3127.7,0.00278783]
[1642654558218,2.7202822,3128.0,3127.8,0.00132167]
[1642654558416,2.7202822,3128.0,3127.8,0.0022194]
[1642654561662,2.71944653,3128.0,3127.8,0.0022194]
[1642654570277,7.235,3128.1,3127.8,0.0022194]
[1642654573525,7.23404753,3128.1,3127.8,0.0022194]
[1642654581718,2.72040048,3128.0,3127.8,0.0022194]
[1642654583772,2.72040048,3128.0,3127.8,0.00127847]
[1642654583773,5.03685,3127.9,3127.8,0.00127847]
[1642654583971,10.86460054,3127.9,3127.8,0.00127847]
[1642654584171,11.86460054,3127.9,3127.8,0.00127847]
[1642654584570,13.47968635,3127.9,3127.8,0.00127847]
[1642654584769,17.56074538,3127.9,3127.8,0.00127847]
[1642654585170,11.86460054,3127.9,3127.8,0.00127847]
[1642654585372,11.86460054,3127.9,3127.8,7.847e-05]
[1642654585574,34.97565957,3127.9,3127.8,7.847e-05]
[1642654585771,0.7997,3127.7,3126.1,1.2031]
[1642654585971,0.7996955,3127.5,3126.1,1.20399775]
[1642654586272,7.07505223,3127.4,3126.2,0.00909478]
[1642654586470,10.83845223,3127.4,3126.2,0.00999253]
[1642654586671,3.72040048,3127.3,3126.2,0.00999253]
[1642654586874,6.40906379,3127.2,3126.3,0.00852635]
[1642654587118,2.72040048,3127.1,3126.3,0.0094241]
[1642654587313,3.33421761,3127.0,3126.3,0.0094241]
[1642654587513,3.33421761,3127.0,3126.4,0.00795793]
[1642654587514,2.72040048,3126.9,3126.4,0.00795793]
[1642654587714,2.59372643,3126.8,3126.4,0.00885568]
[1642654587915,3.18640048,3126.9,3126.4,0.00885568]
[1642654587916,0.466,3126.9,3126.4,0.00885568]
[1642654588119,0.466,3126.9,3126.5,0.00738951]
[1642654588315,0.466,3126.9,3126.5,0.00828726]
[1642654588720,2.4151147,3126.8,3126.6,0.00682108]
[1642654588923,2.4151147,3126.8,3126.6,0.00771883]
[1642654589120,0.466,3126.9,3126.6,0.00771883]
[1642654589321,5.13645558,3126.8,3126.7,0.00625266]
[1642654589522,5.15955575,3126.8,3126.7,0.00715041]
[1642654590220,2.72133038,3126.8,3126.7,0.00715041]
[1642654590420,5.14048497,3126.8,3126.7,0.00715041]
[1642654590624,0.466,3126.9,3126.7,0.00715041]
[1642654591068,0.1279,3127.2,3126.8,0.00568424]
[1642654591266,7.21636374,3127.3,3126.8,0.00658199]
[1642654591468,2.72106826,3127.2,3126.8,0.00658199]
[1642654591670,2.72106826,3127.2,3126.9,0.00511581]
[1642654591867,2.72106826,3127.2,3126.9,0.00601356]
[1642654592267,2.72106826,3127.2,3127.0,0.00454739]
[1642654592467,2.72106826,3127.2,3127.0,0.00544514]
[1642654592869,2.72106826,3127.2,3127.1,0.00397897]
[1642654593071,5.21823989,3127.2,3127.1,0.00487672]
[1642654593973,5.21823415,3127.2,3127.1,0.00487672]
[1642654594630,2.49717163,3127.2,3127.1,0.00487672]
[1642654594816,5.21822193,3127.2,3127.1,0.00487672]
[1642654595017,2.49717163,3127.2,3127.1,0.00487672]
[1642654596022,1.6291,3127.3,3127.1,0.00487672]
[1642654596418,4.11031011,3127.3,3127.2,0.00341054]
[1642654596621,6.83131556,3127.3,3127.2,0.00430829]
[1642654604921,4.35010545,3127.3,3127.2,0.00430829]
[1642654605122,6.81283786,3127.3,3127.2,0.00430829]
[1642654606866,1.6291,3127.3,3127.2,0.00430829]
[1642654607267,4.15951935,3127.3,3127.2,0.00430829]
[1642654607467,1.6291,3127.3,3127.2,0.00430829]
[1642654607668,4.12615528,3127.3,3127.2,0.00430829]
[1642654607868,4.34905935,3127.3,3127.2,0.00430829]
[1642654608069,6.8301337,3127.3,3127.2,0.00430829]
[1642654608368,4.1091699,3127.3,3127.2,0.00430829]
[1642654610418,5.1091699,3127.3,3127.2,0.00430829]
[1642654610716,7.95800319,3127.3,3127.2,0.00430829]
[1642654612014,8.11705319,3127.3,3127.2,0.00430829]
[1642654617528,8.11705319,3127.3,3126.0,7.92]
[1642654617529,4.75,3127.2,3126.0,7.92]
[1642654617728,5.55742475,3127.1,3126.0,7.92]
[1642654617927,5.55742475,3127.1,3126.1,0.00625266]
[1642654617928,2.72093329,3127.0,3126.1,0.00625266]
[1642654618128,2.50568922,3126.9,3126.1,0.00715052]
[1642654618628,3.72136628,3126.8,3126.2,0.00568424]
[1642654618831,2.45853398,3126.7,3126.2,0.0065821]
[1642654619033,1.0,3126.8,3126.2,0.0065821]
[1642654619232,1.0,3126.8,3126.3,0.00511581]
[1642654619431,1.0,3126.8,3126.3,0.01182499]
[1642654619831,1.0,3126.8,3126.4,0.00454739]
[1642654620033,1.0,3126.8,3126.4,0.00544525]
[1642654620331,1.0,3126.8,3126.5,0.00397897]
[1642654620531,0.1279,3127.0,3126.5,0.00487683]
[1642654620734,2.72131782,3126.9,3126.5,0.00487683]
[1642654620966,0.1279,3126.8,3126.6,0.00341054]
[1642654621166,1.1279,3126.8,3126.6,0.0043084]
[1642654621369,2.45058822,3127.0,3126.6,0.0043084]
[1642654621370,2.72135952,3126.7,3126.6,0.0043084]
[1642654621568,0.1279,3127.0,3126.6,0.00089786]
[1642654621771,2.72128014,3126.9,3126.6,0.00089786]
[1642654621968,2.72128014,3126.8,3126.7,0.00284212]
[1642654622170,2.72128014,3127.0,3126.7,0.00373998]
[1642654622469,5.17990969,3126.9,3126.8,0.0022737]
[1642654622671,5.17990969,3126.9,3126.8,0.00317156]
[1642654623069,5.28223805,3126.9,3126.8,0.00317156]
[1642654623875,7.33518805,3126.9,3126.8,0.00317156]
[1642654624075,11.18508805,3126.9,3126.8,0.00317156]
[1642654624276,12.55668805,3126.9,3126.8,7.156e-05]
[1642654624473,16.6385354,3126.9,3126.8,0.00583852]
[1642654624718,19.6670354,3126.9,3126.8,0.00583852]
[1642654625119,19.7717354,3126.9,3126.8,0.00030291]
[1642654625316,19.80663058,3126.9,3126.8,0.00030291]
[1642654625721,19.60673058,3126.9,3126.8,0.00030291]
[1642654625919,15.9218354,3126.9,3126.8,0.00030291]
[1642654626520,34.6518354,3126.9,3126.8,0.00030291]
[1642654626925,35.5254354,3126.9,3126.8,0.00030291]
[1642654629377,35.5254354,3126.9,3125.3,7.62]
[1642654629579,3.84918014,3126.8,3125.4,0.3]
[1642654629776,5.99666005,3126.7,3125.4,0.30885587]
[1642654629978,2.84918014,3126.6,3125.4,0.00885587]
[1642654630176,5.81652641,3126.5,3125.7,1.20017101]
[1642654630375,2.72128014,3126.4,3125.7,1.20106895]
[1642654630577,3.03063931,3126.3,3125.8,0.00568423]
[1642654630776,3.03063931,3126.3,3125.8,0.00658219]
[1642654631178,0.466,3126.3,3125.9,0.00511581]
[1642654631378,0.466,3126.3,3125.9,0.00601377]
[1642654631675,0.466,3126.3,3126.0,0.00454738]
[1642654631876,0.466,3126.3,3126.0,0.00544534]
[1642654632416,0.466,3126.3,3126.1,0.00397896]
[1642654632616,0.466,3126.3,3126.1,0.00487692]
[1642654633016,0.466,3126.3,3126.2,0.00341054]
[1642654633216,0.466,3126.3,3126.2,0.0043085]
[1642654642023,2.87516435,3126.3,3126.2,0.0043085]
[1642654642221,0.466,3126.3,3126.2,0.0043085]
[1642654643364,2.86509094,3126.3,3126.2,0.0043085]
[1642654643569,2.87833685,3126.3,3126.2,0.0043085]
[1642654643770,0.466,3126.3,3126.2,0.0043085]
[1642654644171,0.5939,3126.3,3126.2,0.0043085]
[1642654644570,4.94017887,3126.7,3126.2,0.0043085]
[1642654644771,3.7327,3126.7,3126.2,0.0043085]
[1642654644972,1.1405,3127.1,3126.3,0.00284211]
[1642654645173,2.72131472,3127.0,3126.3,0.00374007]
[1642654645370,2.72245157,3127.0,3126.3,0.00374007]
[1642654645571,3.96872911,3127.0,3126.4,0.00227369]
[1642654645771,1.24640951,3127.0,3126.4,0.00317165]
[1642654646171,1.24640951,3127.0,3126.5,0.00271015]
[1642654646472,1.24640951,3127.0,3126.5,0.00360811]
[1642654646872,0.00013197,3127.0,3126.6,0.00214172]
[1642654647125,0.00013197,3127.0,3126.6,0.00303968]
[1642654647319,2.72136979,3127.0,3126.6,0.00303968]
[1642654647520,2.72136979,3127.0,3126.7,0.0015733]
[1642654647725,2.72136979,3127.0,3126.7,0.00247126]
[1642654648121,2.72136979,3127.0,3126.8,0.00100488]
[1642654648320,2.72136979,3127.0,3126.8,0.00190284]
[1642654655128,0.00013197,3127.0,3126.8,0.00190284]
[1642654667174,2.720941,3127.7,3127.0,0.00069846]
[1642654667374,2.720941,3127.7,3127.0,0.00159642]
[1642654667375,2.43384309,3127.6,3127.0,0.00159642]
[1642654667576,2.720941,3127.5,3127.0,0.00159642]
[1642654667974,2.72321469,3127.4,3127.0,0.00159642]
[1642654668175,2.720941,3127.3,3127.0,0.00159642]
[1642654668375,2.720941,3127.2,3127.0,0.00159642]
[1642654668582,0.00113685,3127.2,3127.0,0.00159642]
[1642654674387,2.72213126,3127.2,3127.0,0.00159642]
[1642654674586,0.00113685,3127.2,3127.0,0.00159642]
[1642654680039,0.00023244,3127.2,3127.0,0.00159642]
[1642654686034,2.72121299,3127.2,3127.0,0.00159642]
[1642654686437,2.72098055,3127.1,3127.0,0.00159642]
[1642654686736,0.00023244,3127.2,3127.0,0.00250083]
[1642654688581,2.72121299,3127.2,3127.0,0.00250083]
[1642654689682,2.72098055,3127.1,3127.0,0.00250083]
[1642654689882,2.52121299,3127.1,3127.0,0.00250083]
[1642654690082,1.2247,3127.4,3127.0,0.00273327]
[1642654692529,2.40865465,3127.3,3127.0,0.00273327]
[1642654692730,1.2247,3127.4,3127.0,0.00273327]
[1642654693536,2.41474613,3127.3,3127.0,0.00273327]
[1642654693745,4.9217362,3127.1,3127.0,0.00273327]
[1642654693943,9.34877059,3127.1,3127.0,0.00273327]
[1642654694139,12.27253724,3127.1,3127.0,0.00273327]
[1642654695144,9.66328732,3127.1,3127.0,0.00273327]
[1642654695745,32.4752594,3127.1,3127.0,0.00273327]
[1642654696183,30.85149275,3127.1,3127.0,0.00273327]
[1642654696782,32.45472589,3127.1,3127.0,0.00273327]
[1642654696984,32.45472589,3127.1,3125.3,0.1279]
[1642654696985,4.75,3127.0,3125.3,0.1279]
[1642654697183,0.79993,3126.5,3125.3,0.12879797]
[1642654697487,3.81647851,3126.4,3125.4,0.00909478]
[1642654697685,3.81647851,3126.4,3125.4,0.0099928]
[1642654697882,1.0,3126.3,3125.4,0.0099928]
[1642654698085,2.78838236,3126.2,3125.5,0.00852635]
[1642654698385,2.78838236,3126.2,3125.5,0.00942437]
[1642654698586,3.93508236,3126.2,3125.5,0.00942437]
[1642654698785,3.93508236,3126.2,3125.6,0.00795793]
[1642654698989,3.93508236,3126.2,3125.6,0.00885595]
[1642654699286,3.93508236,3126.2,3125.7,0.00738951]
[1642654699486,3.93508236,3126.2,3125.7,0.00828753]
[1642654699934,3.93508236,3126.2,3125.8,0.00682108]
[1642654700138,3.93508236,3126.2,3125.8,0.0077191]
[1642654700532,3.93508236,3126.2,3125.9,0.00625266]
[1642654700735,3.93508236,3126.2,3125.9,0.00715068]
[1642654701134,3.93508236,3126.2,3126.0,0.00568423]
[1642654701334,2.47440948,3126.1,3126.0,0.00658225]
[1642654702638,2.94040948,3126.1,3126.0,0.00658225]
[1642654706890,0.466,3126.1,3126.0,0.00658225]
[1642654710142,7.1134,3126.6,3126.0,0.00658225]
[1642654710345,3.2667,3126.6,3126.0,0.00658225]
[1642654710540,3.2667,3126.6,3126.1,0.00511581]
[1642654710740,3.2667,3126.6,3126.1,0.00601383]
[1642654711181,3.2667,3126.6,3126.2,0.00454739]
[1642654711384,3.2667,3126.6,3126.2,0.00544541]
[1642654711786,3.2667,3126.6,3126.3,0.00397896]
[1642654711984,3.2667,3126.6,3126.3,0.00487698]
[1642654712385,3.2667,3126.6,3126.4,0.00341054]
[1642654712586,3.2667,3126.6,3126.4,0.00430856]
[1642654712888,3.2667,3126.6,3126.5,0.00284212]
[1642654713087,5.98863892,3126.6,3126.5,0.00374014]
[1642654713286,5.98864097,3126.6,3126.5,0.00374014]
[1642654713492,8.39808251,3126.6,3126.5,0.00374014]
[1642654713692,10.02313251,3126.6,3126.5,0.00374014]
[1642654714492,10.32313251,3126.6,3126.5,0.00374014]
[1642654714936,10.45103251,3126.6,3126.5,0.00374014]
[1642654715138,10.15103251,3126.6,3126.5,0.00374014]
[1642654715540,9.99198251,3126.6,3126.5,0.00374014]
[1642654716737,7.58252464,3126.6,3126.5,0.00374014]
[1642654717836,6.58252464,3126.6,3126.5,0.00374014]
[1642654718687,6.45462464,3126.6,3126.5,0.00374014]
[1642654719491,6.45461992,3126.6,3126.5,0.00374014]
[1642654721596,8.87993792,3126.6,3126.5,0.00374014]
[1642654723034,10.14094079,3126.6,3126.5,0.00374014]
[1642654724238,7.71466987,3126.6,3126.5,0.00374014]
[1642654724438,10.19782789,3126.6,3126.5,0.00374014]
[1642654725239,11.19782789,3126.6,3126.5,0.00374014]
[1642654725891,11.48477789,3126.6,3126.5,0.00374014]
[1642654726089,12.08477789,3126.6,3126.5,0.00374014]
[1642654726291,30.81477789,3126.6,3126.5,0.00374014]
[1642654726492,34.89767502,3126.6,3126.5,0.00374014]
[1642654727089,0.80006,3126.4,3124.9,1.1486]
[1642654727290,0.80006,3126.4,3124.7,0.1279]
[1642654727291,1.6001339,3125.9,3124.7,0.1279]
[1642654727494,4.75,3125.7,3124.0,3.6756]
[1642654727696,4.75,3125.7,3124.0,0.01]
[1642654727697,5.93766959,3125.6,3124.0,0.01]
[1642654727891,18.73,3125.4,3124.8,0.00113685]
[1642654728090,5.822,3125.1,3124.8,0.00113685]
[1642654728301,3.65026992,3125.0,3124.8,0.00113685]
[1642654728498,6.78791992,3124.9,3124.8,0.00113685]
[1642654728697,0.8003412,3124.7,3124.2,0.00454739]
[1642654728895,0.466,3124.6,3124.2,0.00454739]
[1642654729093,0.466,3124.6,3124.1,0.00511581]
[1642654729937,2.43034206,3124.5,3124.1,0.00511581]
[1642654730136,0.466,3124.4,3124.1,0.00511581]
[1642654730337,0.46503965,3124.4,3124.1,0.00511581]
[1642654731539,0.46503965,3124.4,3124.1,0.00410634]
[1642654731938,2.41060859,3124.3,3124.1,0.00410634]
[1642654732140,0.46503965,3124.4,3124.1,0.00410634]
[1642654735790,0.46503965,3124.4,3124.1,1.50506285]
[1642654735994,3.7013,3124.8,3124.1,1.80506285]
[1642654736191,3.7013,3124.8,3124.2,0.00353792]
[1642654737233,3.7013,3124.8,3124.4,1.15347442]
[1642654737434,3.7013,3124.8,3124.2,0.00353792]
[1642654737635,3.7013,3124.8,3124.5,0.00183265]
[1642654737836,3.7013,3124.8,3124.2,0.00353792]
[1642654738640,3.7013,3124.8,3124.4,1.41438561]
[1642654739042,3.7013,3124.8,3124.5,0.00183265]
[1642654744633,0.2662479,3125.3,3124.5,0.00183265]
[1642654744837,0.1382479,3125.3,3124.5,0.00183265]
[1642654745136,0.00214632,3125.2,3124.5,0.00183265]
[1642654745538,0.00157789,3125.1,3124.5,0.00183265]
[1642654745936,0.00100947,3125.0,3124.5,0.00183265]
[1642654746337,0.00214632,3125.2,3124.5,0.00183265]
[1642654746741,0.00157789,3125.1,3124.5,0.00183265]
[1642654747137,0.00100947,3125.0,3124.5,0.00183265]
[1642654747536,0.00214632,3125.2,3124.5,0.00183265]
[1642654747939,0.13654263,3125.3,3124.5,0.00183265]
[1642654747940,0.00157789,3125.1,3124.5,0.00183265]
[1642654748410,0.00100947,3125.0,3124.5,0.00183265]
[1642654748804,0.00214632,3125.2,3124.9,1.34263215]
[1642654749204,0.00157789,3125.1,3124.9,1.34263215]
[1642654749604,0.00100947,3125.0,3124.9,1.34263215]
[1642654756385,0.00015635,3125.0,3124.9,1.34263215]
[1642654757389,0.00015635,3125.0,3124.5,0.00183265]
[1642654757791,0.00015635,3125.0,3124.2,2.7852]
[1642654757792,0.00015635,3125.0,3124.3,0.00382261]
[1642654758694,0.00015635,3125.0,3124.3,1.4766721]
[1642654759094,0.00015635,3125.0,3124.4,0.00325419]
[1642654762842,0.00015635,3125.0,3124.4,1.49333781]
[1642654763042,0.00015635,3125.0,3124.4,3.09333781]
[1642654763241,0.00015635,3125.0,3124.5,0.00268577]
[1642654764090,0.00015635,3125.0,3124.5,1.00268577]
[1642654764290,0.00015635,3125.0,3124.6,3.18630822]
[1642654764492,0.00015635,3125.0,3124.7,0.3]
[1642654764792,0.00015635,3125.0,3124.8,1.50672358]
[1642654764996,0.00015635,3125.0,3124.8,1.80672358]
[1642654765592,0.00015635,3125.0,3124.8,0.3009805]
[1642654765990,0.00015635,3125.0,3124.8,0.0009805]
[1642654766390,2.72146495,3126.0,3124.9,3.9]
[1642654766590,2.72146495,3126.0,3125.0,1.0]
[1642654766790,8.2502,3126.3,3125.6,1.28241154]
[1642654766791,0.00511581,3125.9,3125.6,1.28241154]
[1642654767250,0.00454739,3125.8,3125.6,1.28241154]
[1642654767653,0.00397896,3125.7,3125.6,1.28241154]
[1642654768252,0.00397896,3125.7,3125.5,1.10040602]
[1642654768658,0.00341054,3125.6,3125.5,1.10040602]
[1642654769556,0.00341054,3125.6,3125.4,1.47689588]
[1642654769957,0.00284212,3125.5,3125.4,1.47689588]
[1642654770557,0.00284212,3125.5,3125.2,1.44392492]
[1642654770987,0.00227369,3125.4,3125.2,1.44392492]
[1642654771287,0.00170527,3125.3,3125.2,1.44392492]
[1642654772887,0.00170527,3125.3,3125.2,2.73500064]
[1642654780598,0.00170527,3125.3,3124.8,0.0009805]
[1642654780796,0.46770527,3125.3,3124.8,0.0009805]
[1642654780995,0.00113685,3125.2,3124.8,0.0009805]
[1642654781294,0.00113685,3125.2,3124.0,1.1766]
[1642654781295,0.00113685,3125.2,3124.1,0.00511581]
[1642654781495,0.00113685,3125.2,3125.1,1.40118542]
[1642654785243,0.00113685,3125.2,3125.1,3.86940065]
[1642654785443,0.00113685,3125.2,3125.1,4.16940065]
[1642654785897,0.00113685,3125.2,3125.1,4.46940065]
[1642654788388,0.00113685,3125.2,3125.1,5.46940065]
[1642654788591,0.00113685,3125.2,3125.1,4.46940065]
[1642654788789,0.00113685,3125.2,3125.1,4.14931563]
[1642654789491,0.00113685,3125.2,3125.1,1.70118542]
[1642654789737,0.00113685,3125.2,3125.1,1.40118542]
[1642654789938,0.00113685,3125.2,3125.1,1.70118542]
[1642654790137,0.00113685,3125.2,3125.1,1.40118542]
[1642654791644,0.00113685,3125.2,3125.1,3.88049347]
[1642654791845,0.00113685,3125.2,3125.1,1.40118542]
[1642654792144,0.00113685,3125.2,3125.1,1.70118542]
[1642654793494,0.00113685,3125.2,3125.1,1.40118542]
[1642654794093,0.00113685,3125.2,3125.1,1.70118542]
[1642654796197,0.00113685,3125.2,3125.1,1.40118542]
[1642654801800,0.00113685,3125.2,3125.1,4.48149723]
[1642654802202,0.00113685,3125.2,3125.1,3.88149723]
[1642654802400,0.00113685,3125.2,3125.1,5.48149723]
[1642654803003,0.00020252,3125.2,3125.1,5.48149723]
[1642654803201,0.00020252,3125.2,3125.1,3.48031181]
[1642654803402,0.00020252,3125.2,3125.1,2.78031181]
[1642654803602,0.00020252,3125.2,3125.1,3.78031181]
[1642654803804,0.00020252,3125.2,3125.1,3.08031181]
[1642654804002,0.00020252,3125.2,3125.1,4.08031181]
[1642654804203,0.00020252,3125.2,3125.1,5.21061181]
[1642654804637,4.32394387,3126.6,3125.1,5.21061181]
[1642654804942,0.00759202,3126.5,3125.1,5.21061181]
[1642654805143,2.72193486,3126.4,3125.2,1.0]
[1642654805341,2.72895846,3126.4,3125.2,1.0]
[1642654805543,2.72839004,3126.3,3125.2,1.0]
[1642654805744,2.72193486,3126.2,3125.2,1.0]
[1642654805944,2.72782161,3126.2,3125.1,3.61061181]
[1642654806144,2.72725319,3126.1,3125.4,1.30209521]
[1642654806450,2.72668477,3126.0,3125.4,1.30209521]
[1642654806746,2.72193486,3125.9,3125.4,1.30209521]
[1642654806944,2.72611634,3125.9,3125.4,1.30209521]
[1642654807144,0.1279,3126.1,3125.6,1.27766765]
[1642654807145,2.72554792,3125.8,3125.6,1.27766765]
[1642654807344,2.72193486,3125.7,3125.6,1.27766765]
[1642654807544,2.72497949,3125.7,3125.6,1.27766765]
[1642654807746,0.00304463,3125.7,3125.6,1.27766765]
[1642654809507,0.47721093,3125.7,3125.6,1.27766765]
[1642654809708,3.19914579,3125.7,3125.6,1.27766765]
[1642654813848,3.19932259,3125.7,3125.6,1.27766765]
[1642654815749,3.19932259,3125.7,3125.4,1.30209521]
[1642654815994,2.72211166,3125.6,3125.4,1.30209521]
[1642654816194,0.23708315,3125.5,3125.1,1.1303]
[1642654816394,2.95919481,3125.4,3125.1,0.3]
[1642654816596,2.95919481,3125.4,3124.8,3.9958]
[1642654816597,0.23842251,3125.4,3124.8,3.9958]
[1642654816796,2.72227909,3125.3,3125.0,0.3]
[1642654816997,0.23842251,3125.4,3124.9,0.00150275]
[1642654817400,0.23842251,3125.4,3125.2,1.31768134]
[1642654817599,0.23842251,3125.4,3125.2,2.53489978]
[1642654818201,0.23842251,3125.4,3125.3,4.3]
[1642654818601,0.23842251,3125.4,3125.3,3.3]
[1642654819107,0.23842251,3125.4,3125.2,2.53489978]
[1642654821554,0.23708315,3125.3,3125.2,2.53489978]
[1642654821754,0.4741663,3125.3,3125.2,2.83489978]
[1642654822955,0.4741663,3125.3,3125.2,2.53489978]
[1642654825095,0.47325809,3125.3,3125.2,2.53489978]
[1642654825299,0.00133936,3125.4,3125.3,4.0]
[1642654825700,0.00133936,3125.4,3125.3,5.0]
[1642654834300,2.72198125,3126.3,3125.4,4.75]
[1642654834503,0.2747426,3127.1,3125.6,2.19908]
[1642654834750,2.72170154,3127.0,3126.8,1.33206115]
[1642654834950,2.72170154,3126.9,3126.8,1.33206115]
[1642654835150,2.73136474,3127.1,3126.8,1.33206115]
[1642654835348,2.72170154,3127.0,3126.8,1.33206115]
[1642654835549,2.73079632,3127.0,3126.8,1.33206115]
[1642654835749,2.7302279,3126.9,3126.8,1.33206115]
[1642654836552,0.00852636,3126.9,3126.8,1.33206115]
[1642654837959,0.00852636,3126.9,3126.8,1.63206115]
[1642654838159,0.00852636,3126.9,3126.8,2.88776115]
[1642654838397,0.00852636,3126.9,3126.8,3.18776115]
[1642654838802,0.00852636,3126.9,3126.8,5.53776115]
[1642654839401,0.00852636,3126.9,3126.8,8.20795269]
[1642654839602,0.00852636,3126.9,3126.8,8.33585269]
[1642654840406,0.00852636,3126.9,3126.8,4.68585269]
[1642654840610,0.00852636,3126.9,3126.8,1.63206115]
[1642654840806,0.00852636,3126.9,3126.8,2.63206115]
[1642654841005,0.00852636,3126.9,3126.8,1.63206115]
[1642654841209,0.00852636,3126.9,3126.8,1.33206115]
[1642654841806,2.73006025,3126.9,3126.8,1.33206115]
[1642654842246,0.00852636,3126.9,3126.8,1.33206115]
[1642654842844,0.00852636,3126.9,3126.8,2.63206115]
[1642654843144,0.00852636,3126.9,3126.8,1.63206115]
[1642654843344,0.00852636,3126.9,3126.8,1.33206115]
[1642654843548,0.00852636,3126.9,3126.8,2.63206115]
[1642654843951,0.00852636,3126.9,3126.8,2.33206115]
[1642654844954,0.00852636,3126.9,3126.8,2.63206115]
[1642654845149,0.00852636,3126.9,3126.8,4.30957871]
[1642654845551,0.00852636,3126.9,3126.8,8.18809255]
[1642654845752,0.00852636,3126.9,3126.8,8.65409255]
[1642654845993,0.00852636,3126.9,3126.8,8.78199255]
[1642654846395,0.00852636,3126.9,3126.8,5.58199255]
[1642654848295,0.00852636,3126.9,3126.8,5.20347871]
[1642654848498,0.00852636,3126.9,3126.8,3.52596115]
[1642654849000,0.00852636,3126.9,3126.8,5.41569989]